[Event "MPL 19th IND-ch Teams Women 2022"]
[Site "Jalgaon"]
[Date "2022.04.13"]
[Round "6.8"]
[White "Mohota, Nisha"]
[Black "Bommini Mounika Akshaya"]
[Result "1-0"]
[ECO "A43"]
[WhiteElo "2147"]
[BlackElo "2145"]
[Annotator "TA"]
[PlyCount "85"]
[EventDate "2022.04.10"]
[EventType "team-tourn"]
[EventCountry "IND"]
[SourceTitle "playchess.com"]
[Source "ChessBase"]
[SourceQuality "1"]
[TimeControl "5400+30"]

{[%evp 18,85,59,45,54,47,97,116,142,149,135,144,149,145,162,158,164,158,170,142,130,125,131,123,158,147,253,250,224,202,347,302,333,230,223,196,196,203,224,195,224,194,204,185,212,204,287,239,216,210,215,210,203,185,202,156,206,214,219,134,321,264,811,832,845,445,416,447,398,335]} 1. d4 {[%emt 0:00:10]} Nf6 {[%emt 0:00:54]} 2. c4 {[%emt 0:00:08]} c5 {[%emt 0:00:17]} 3. d5 {[%emt 0:00:10]} d6 {[%emt 0:00:18]} 4. Nc3 {[%emt 0:00:20]} g6 {[%emt 0:00:17]} 5. e4 {[%emt 0:00:42]} Bg7 {[%emt 0:00:13]} 6. Nf3 {[%emt 0:03:20]} O-O {[%emt 0:00:42]} 7. Be2 {[%emt 0:00:23]} e6 {[%emt 0:01:20]} 8. O-O {[%emt 0:04:30]} exd5 {[%emt 0:00:11]} 9. exd5 {[%emt 0:00:03] now supersedes 9.cxd5.} Bg4 {[%emt 0:06:33]} 10. Bf4 {[%emt 0:01:59]} Nh5 {[%emt 0:05:22] E91: King's Indian: Classical: 6 Be2, unusual replies including 6...c5 and 6...Bg4.} 11. Bg5 {[%emt 0:01:10]} f6 {[%emt 0:02:08] [#]} (11... Bf6 $14) 12. Bd2 $146 {[%emt 0:01:06]} ({Predecessor:} 12. Be3 f5 13. Ng5 Bxe2 14. Nxe2 f4 15. Ne6 Qe7 16. N2xf4 Nxf4 17. Bxf4 Rxf4 18. Nxf4 Bxb2 {0-1 (47) Campos,O (1713)-Yano,W (2076) Goiania 2016}) 12... Bh8 {[%emt 0:17:50] White is better.} 13. h3 {[%emt 0:02:49]} Bxf3 {[%emt 0:02:30]} 14. Bxf3 {[%emt 0:00:03]} (14. gxf3 f5 15. f4 Bxc3 16. bxc3 Qh4 $11) 14... Ng7 {[%emt 0:00:18]} 15. Bf4 {[%emt 0:00:47]} f5 {[%emt 0:06:11] [#]} 16. Nb5 $1 {[%emt 0:02:48]} Ne8 {[%emt 0:03:28]} 17. Qe2 $36 {[%emt 0:03:36][%mdl 2048] White is on the roll.} Rf6 {[%emt 0:06:15]} 18. Bg5 {[%emt 0:02:38]} a6 {[%emt 0:03:31]} 19. Bxf6 {[%emt 0:05:57] &Bianco is much more active.} Bxf6 {[%emt 0:00:08]} 20. Nc3 {[%emt 0:00:17]} Nc7 {[%emt 0:00:37]} 21. g4 {[%emt 0:02:30]} fxg4 {[%emt 0:02:08]} (21... Be5 $16 22. gxf5 gxf5) 22. Bxg4 $18 {[%emt 0:00:41]} Nd7 {[%emt 0:00:23]} 23. Ne4 {[%emt 0:01:54]} Be7 {[%emt 0:00:51]} (23... Bd4 $142 24. Nxd6 Ne5) 24. f4 {[%emt 0:01:36]} Nf6 {[%emt 0:00:14]} 25. Ng3 {[%emt 0:04:01]} Qf8 {[%emt 0:01:00]} 26. Be6+ {[%emt 0:02:18]} Kh8 {[%emt 0:00:36]} 27. Rae1 {[%emt 0:00:48][%cal Ba1e1,Be1e2,Be2g2][%mdl 32]} Re8 {[%emt 0:00:15]} 28. Qg2 {[%emt 0:01:00]} Qg7 {[%emt 0:00:54]} 29. b3 {[%emt 0:02:47]} b5 {[%emt 0:00:34]} 30. Re2 {[%emt 0:01:11]} Rb8 {[%emt 0:00:31]} 31. Qf3 {[%emt 0:11:24]} b4 {[%emt 0:01:05]} (31... Rf8 {was called for.} 32. Qc3 Bd8) 32. Rfe1 {[%emt 0:00:49]} Rf8 {[%emt 0:01:11]} 33. Kh2 {[%emt 0:03:29]} Bd8 {[%emt 0:00:33]} 34. Rg2 {[%emt 0:09:08][%cal Og3f5] Hoping for Nf5!} Qh6 {[%emt 0:00:24]} 35. Rf1 {[%emt 0:02:29]} Nce8 {[%emt 0:01:12]} 36. a3 {[%emt 0:01:55]} a5 {[%emt 0:00:41]} (36... Ng7 $16 37. axb4 cxb4) 37. axb4 {[%emt 0:00:06]} cxb4 {[%emt 0:00:23]} 38. Ne4 {[%emt 0:03:11]} Nh5 $2 {[%emt 0:03:16] Loses the game.} (38... Nxe4 $16 39. Qxe4 Bf6) 39. f5 {[%emt 0:01:23]} gxf5 $2 {[%emt 0:11:41] [#]} (39... Neg7 40. Qg4 (40. Nxd6 Bc7 $16) 40... Qe3) 40. Qxf5 $1 {[%emt 0:00:57][%mdl 512]} Nef6 {[%emt 0:00:54]} (40... Bf6 41. Kh1) 41. Rfg1 {[%emt 0:09:51] White threatens Nxf6 and mate.} Qf4+ {[%emt 0:04:22]} 42. Qxf4 {[%emt 0:00:14]} Nxf4 {[%emt 0:00:03]} 43. Nxf6 {[%emt 0:00:27] Weighted Error Value: White=0.32/Black=0.33} ({Not} 43. Nxd6 Nxg2 44. Kxg2 Bb6 $18) 1-0